bitfinex/quotes_SOLUSD_20251214
["timestamp","ask_amount","ask_price","bid_price","bid_amount"]
[1765670951709,17.04994492,132.88,132.87,3.40106912]
[1765670952124,28.07830045,132.88,132.87,4.09106912]
[1765670952327,11.02835553,132.88,132.87,4.09106912]
[1765670960441,11.02835553,132.88,132.87,72.8172225]
[1765670960736,16.33405262,132.89,132.87,72.8172225]
[1765670960937,16.33405262,132.89,132.88,4.09106912]
[1765670965442,16.33405262,132.89,132.88,65.29106912]
[1765670966540,25.82399754,132.89,132.88,61.2]
[1765670967022,25.14399754,132.89,132.88,61.2]
[1765670968230,33.34901823,132.89,132.88,61.2]
[1765670968847,32.66901823,132.89,132.88,61.2]
[1765670969222,8.80994492,132.88,132.87,2.17572488]
[1765670969435,17.72994492,132.88,132.86,2.17572488]
[1765670969842,31.42158991,132.87,132.86,2.84572488]
[1765670973649,8.80994492,132.87,132.86,2.84572488]
[1765670974035,16.3360983,132.87,132.86,2.17572488]
[1765670974237,16.3360983,132.87,132.85,61.97]
[1765670974439,38.94774329,132.87,132.86,2.17572488]
[1765670975237,16.3360983,132.87,132.86,2.17572488]
[1765670975549,38.94774329,132.87,132.86,2.17572488]
[1765670976127,39.62774329,132.87,132.86,2.17572488]
[1765670976451,39.62774329,132.87,132.85,61.3]
[1765670976652,8.24,132.86,132.85,63.47572488]
[1765670976826,8.24,132.86,132.85,64.14572488]
[1765670980058,8.24,132.86,132.85,64.14630942]
[1765670983730,38.94774329,132.87,132.85,64.14630942]
[1765670983731,22.61164499,132.87,132.85,66.32261884]
[1765670984039,8.24,132.88,132.86,2.84630942]
[1765670984246,39.65988575,132.88,132.87,2.17630942]
[1765670984452,39.65988575,132.88,132.87,2.84630942]
[1765670985080,30.84994083,132.88,132.87,2.84630942]
[1765670985259,8.24,132.88,132.87,2.84630942]
[1765670986345,8.24,132.88,132.87,64.04630942]
[1765670989559,8.24,132.88,132.87,61.87]
[1765670989859,8.24,132.88,132.87,64.04630942]
[1765670993162,24.57455053,132.9,132.87,64.04630942]
[1765670993362,47.18108381,132.9,132.89,2.17630942]
[1765670993563,47.86108381,132.9,132.89,2.17630942]
[1765670994561,47.86108381,132.9,132.88,0.67]
[1765670994748,47.86108381,132.9,132.89,2.17630942]
[1765670996446,47.86108381,132.9,132.86,68.72665656]
[1765670996447,8.80994492,132.89,132.87,2.17630942]
[1765670996767,17.0151491,132.89,132.87,2.83630942]
[1765670997148,39.62338603,132.89,132.87,2.83630942]
[1765670997751,39.62338603,132.89,132.88,2.17630942]
[1765671000169,38.94338603,132.89,132.88,2.17630942]
[1765671000466,39.62338603,132.89,132.88,2.17630942]
[1765671000690,39.90770917,132.89,132.86,2.17630942]
[1765671000849,8.80994492,132.87,132.86,2.17630942]
[1765671002600,17.72994492,132.87,132.86,2.17630942]
[1765671004095,8.80994492,132.87,132.86,2.17630942]
[1765671010699,34.17578198,132.88,132.86,2.83630942]
[1765671010700,26.64994492,132.88,132.86,2.83630942]
[1765671010888,27.21988984,132.88,132.87,2.17630942]
[1765671011079,35.45988984,132.88,132.87,2.17630942]
[1765671011795,34.77988984,132.88,132.87,2.17630942]
[1765671011996,17.04994492,132.88,132.87,2.17630942]
[1765671012501,16.54994492,132.88,132.87,2.17630942]
[1765671014095,16.54994492,132.88,132.86,8.1867058]
[1765671014397,16.54994492,132.88,132.87,2.17630942]
[1765671014791,17.22994492,132.88,132.87,2.17630942]
[1765671015403,17.22994492,132.88,132.87,2.17568013]
[1765671017500,16.54994492,132.88,132.87,2.17568013]
[1765671017907,16.54994492,132.88,132.87,2.83568013]
[1765671019095,16.54994492,132.88,132.87,2.17568013]
[1765671020111,16.54994492,132.88,132.87,2.83568013]
[1765671020704,16.54994492,132.88,132.87,0.66]
[1765671023310,16.54994492,132.88,132.86,64.08568013]
[1765671024096,16.54994492,132.88,132.87,0.71]
[1765671025294,17.23994492,132.88,132.86,64.06568013]
[1765671027906,17.23994492,132.88,132.86,61.89]
[1765671030035,39.84988575,132.88,132.86,61.89]
[1765671031418,39.15988575,132.88,132.86,61.89]
[1765671031629,39.15988575,132.88,132.87,0.69]
[1765671032300,39.15988575,132.88,132.86,61.2]
[1765671032487,39.15988575,132.88,132.87,0.69]
[1765671032911,39.84988575,132.88,132.86,61.89]
[1765671033108,39.15988575,132.88,132.86,61.89]
[1765671034994,39.15988575,132.88,132.86,69.41657504]
[1765671036023,39.15988575,132.88,132.86,72.81652388]
[1765671038220,39.15988575,132.88,132.86,65.28994884]
[1765671038721,39.15988575,132.88,132.86,64.59994884]
[1765671038927,8.24,132.88,132.87,0.69]
[1765671039718,17.73994492,132.9,132.87,65.28994884]
[1765671040024,40.3464782,132.9,132.88,3.39994884]
[1765671040223,40.3464782,132.9,132.88,4.08994884]
[1765671040526,39.6564782,132.9,132.88,11.61548576]
[1765671040826,8.24,132.9,132.89,4.08994884]
[1765671041324,8.24,132.9,132.89,3.39994884]
[1765671042726,8.24,132.9,132.89,4.08994884]
[1765671043023,8.80994492,132.92,132.89,11.61496953]
[1765671043215,17.04994492,132.92,132.9,4.08994884]
[1765671043523,17.04994492,132.92,132.89,4.08994884]
[1765671043524,0.69,132.91,132.89,4.08994884]
[1765671044103,23.29312676,132.91,132.89,0.69]
[1765671047903,0.69,132.91,132.89,4.08994884]
[1765671048306,0.69,132.91,132.89,0.69]
[1765671048696,0.69,132.91,132.89,61.89]
[1765671049030,0.69,132.91,132.89,65.28994884]
[1765671050037,23.29312676,132.91,132.89,65.28994884]
[1765671050344,0.69,132.91,132.89,65.28994884]
[1765671051824,23.29312676,132.91,132.89,65.28994884]
[1765671052035,30.12712921,132.91,132.89,61.2]
[1765671052200,0.69,132.9,132.89,61.2]
[1765671053407,30.81712921,132.91,132.89,61.2]
[1765671055833,30.81712921,132.91,132.89,64.5990227]
[1765671057832,30.12712921,132.91,132.89,64.5990227]
[1765671058030,30.12712921,132.91,132.89,65.2790227]
[1765671058607,30.81712921,132.91,132.89,65.2790227]
[1765671076078,23.29312676,132.91,132.89,65.2790227]
[1765671080472,23.29312676,132.91,132.89,61.2]
[1765671080681,23.29312676,132.91,132.89,61.88]
[1765671084184,23.29312676,132.91,132.89,65.2790227]
[1765671084680,22.60312676,132.91,132.89,65.2790227]
[1765671085354,23.30312676,132.91,132.89,65.2790227]
[1765671088355,23.30312676,132.91,132.89,65.27852769]
[1765671089587,0.7,132.91,132.89,65.27852769]
[1765671089889,0.7,132.91,132.89,64.05504295]
[1765671090089,23.30482989,132.91,132.89,64.05504295]
[1765671091196,0.7,132.91,132.89,64.05504295]
[1765671091362,22.60482989,132.9,132.89,64.05504295]
[1765671100888,22.60482989,132.9,132.89,71.58006364]
[1765671101190,22.60312676,132.91,132.89,71.58006364]
[1765671101392,22.60312676,132.91,132.9,2.17504295]
[1765671101586,23.30312676,132.91,132.9,2.17504295]
[1765671102089,23.30312676,132.91,132.9,63.37504295]
[1765671104691,23.30312676,132.91,132.9,61.2]
[1765671114106,22.60312676,132.91,132.9,61.2]
[1765671122607,22.60312676,132.91,132.9,63.37504295]
[1765671122790,22.60312676,132.91,132.9,61.2]
[1765671123904,8.80994492,132.94,132.9,71.60902163]
[1765671124096,22.59972127,132.93,132.92,2.17456716]
[1765671124494,22.59972127,132.93,132.92,2.88456716]
[1765671125005,16.4818598,132.95,132.92,2.88456716]
[1765671125302,22.5980189,132.94,132.93,2.88456716]
[1765671127300,22.5980189,132.94,132.93,2.17456716]
[1765671129019,23.3180189,132.94,132.93,2.17456716]
[1765671130722,22.5980189,132.94,132.93,2.17456716]
[1765671131422,23.3180189,132.94,132.93,2.17456716]
[1765671132416,22.5980189,132.94,132.93,2.17456716]
[1765671134806,22.5980189,132.94,132.93,63.37456716]
[1765671139826,22.5980189,132.94,132.93,64.08456716]
[1765671140010,22.5980189,132.94,132.93,63.37456716]
[1765671145426,22.5980189,132.94,132.93,64.03456716]
[1765671145607,8.80994492,132.98,132.93,175.95732349]
[1765671145923,31.40285827,132.98,132.97,2.17456716]
[1765671146120,31.40285827,132.98,132.97,63.37456716]
[1765671146322,31.40285827,132.98,132.97,64.03456716]
[1765671146536,31.40285827,132.98,132.97,63.37456716]
[1765671147341,31.40285827,132.98,132.97,64.03456716]
[1765671148635,16.4497501,132.99,132.97,2.83456716]
[1765671148830,39.04096211,132.99,132.97,2.17456716]
[1765671150846,16.4497501,132.99,132.97,2.17456716]
[1765671151949,16.4497501,132.99,132.97,3.39452902]
[1765671152849,16.4497501,132.99,132.96,65.25452902]
[1765671153249,16.4497501,132.99,132.97,4.05452902]
[1765671153737,0.69,132.98,132.96,64.59452902]
[1765671154246,0.69,132.98,132.96,65.25452902]
[1765671157799,16.4497501,132.99,132.97,3.39452902]
[1765671158432,16.4497501,132.99,132.97,64.59452902]
[1765671158617,16.4497501,132.99,132.97,65.25452902]
[1765671158818,16.4497501,132.99,132.97,4.05452902]
[1765671159240,16.4497501,132.99,132.97,3.39452902]
[1765671159924,16.4497501,132.99,132.97,4.05451384]
[1765671163146,16.4497501,132.99,132.96,0.66]
[1765671163349,16.4497501,132.99,132.97,3.39451384]
[1765671163848,0.69,132.98,132.97,3.39451384]
[1765671164028,0.69,132.98,132.96,3.39451384]
[1765671164227,8.80994492,132.97,132.94,4.05451384]
[1765671164435,17.04994492,132.97,132.94,4.05451384]
[1765671164651,0.69,132.96,132.94,4.05451384]
[1765671165562,17.73994492,132.97,132.94,4.05451384]
[1765671166434,25.26050644,132.97,132.94,4.05451384]
[1765671168945,25.26050644,132.97,132.94,11.57663512]
[1765671174975,17.73994492,132.97,132.95,3.39451384]
[1765671176181,17.04994492,132.97,132.95,3.39451384]
[1765671176365,0.71,132.96,132.95,3.39451384]
[1765671176755,17.04994492,132.97,132.95,3.39451384]
[1765671176954,17.75994492,132.97,132.95,3.39451384]
[1765671181179,17.75994492,132.97,132.95,4.08451384]
[1765671181565,7.52219046,132.99,132.96,16.44160504]
[1765671181886,0.91,133.02,132.98,16.44160504]
[1765671182058,0.2,133.02,133.01,3.39451384]
[1765671182564,0.2,133.02,133.01,4.08451384]
[1765671183285,0.2,133.02,133.01,24.64983675]
[1765671186490,0.2,133.02,133.01,23.95983675]
[1765671186786,0.91,133.02,133.01,3.39451384]
[1765671193694,0.91,133.02,133.0,8.20867948]
[1765671193873,0.2,133.02,133.01,3.39451384]
[1765671194377,8.42778975,133.02,133.0,3.39451384]
[1765671195002,0.71,133.01,133.0,3.39451384]
[1765671195502,0.71,133.01,133.0,3.39317448]
[1765671196187,0.71,133.01,132.99,16.44026568]
[1765671196505,7.71778975,133.02,133.0,3.39317448]
[1765671196506,0.91,133.02,133.0,3.39317448]
[1765671196714,0.91,133.02,133.0,4.08317448]
[1765671197120,9.71994492,133.02,133.01,3.39317448]
[1765671199406,9.71994492,133.02,133.0,4.08317448]
[1765671199592,9.71994492,133.02,133.01,3.39317448]
[1765671201007,9.71994492,133.02,133.0,4.08317448]
[1765671201607,9.71994492,133.02,133.0,3.39317448]
[1765671202006,0.91,133.02,133.0,10.91157592]
[1765671202186,0.91,133.02,133.01,3.39317448]
[1765671205328,0.91,133.02,133.0,11.60157592]
[1765671206642,0.91,133.02,133.0,10.91157592]
[1765671207634,0.91,133.02,133.0,11.59157592]
[1765671209336,0.2,133.02,133.01,3.39317448]
[1765671209504,0.2,133.02,133.01,4.07317448]
[1765671212147,0.2,133.02,133.01,10.36859281]
[1765671217545,0.89,133.02,133.01,9.68859281]
[1765671217843,0.89,133.02,133.01,2.1703611]
[1765671218442,0.2,133.02,133.01,2.1703611]
[1765671218751,0.89,133.02,133.01,2.1703611]
[1765671220450,0.89,133.02,133.0,9.68894916]
[1765671220655,0.69,133.01,133.0,9.68894916]
[1765671221258,0.89,133.02,133.0,9.68894916]
[1765671227959,0.69,133.01,133.0,9.68894916]
[1765671228465,0.89,133.02,133.0,9.68894916]
[1765671231070,0.89,133.02,133.0,9.6899678]
[1765671232670,0.89,133.02,133.0,7.51858806]
[1765671232871,0.89,133.02,133.0,9.6899678]
[1765671237082,0.89,133.02,133.01,2.17137974]
[1765671237751,0.89,133.02,133.0,9.6899678]
[1765671243790,0.2,133.02,133.01,2.86137974]
[1765671245289,0.2,133.02,133.01,10.37961145]
[1765671249408,0.2,133.04,133.03,13.0470912]
[1765671249608,0.2,133.04,133.03,2.17137974]
[1765671249895,0.2,133.04,133.03,11.10137974]
[1765671251491,0.2,133.04,133.03,31.66557234]
[1765671253602,0.2,133.04,133.03,136.06557234]
[1765671259519,0.2,133.06,133.05,60.8]
[1765671259821,0.2,133.06,133.05,65.14275948]
[1765671260016,0.2,133.06,133.05,65.83275948]
[1765671260221,0.2,133.06,133.05,170.23275948]
[1765671261617,0.2,133.06,133.05,177.74873091]
[1765671262102,0.2,133.06,133.05,185.98873091]
[1765671264353,0.2,133.07,133.06,60.6]
[1765671264655,0.2,133.07,133.06,63.47137974]
[1765671265234,0.2,133.07,133.06,175.38678632]
[1765671265860,0.2,133.09,133.06,70.28678632]
[1765671266013,0.2,133.09,133.08,2.17137974]
[1765671266715,0.91,133.09,133.08,2.17137974]
[1765671266934,0.91,133.09,133.08,2.16891441]
[1765671267142,0.91,133.09,133.07,15.21600561]
[1765671267341,0.71,133.08,133.07,15.21600561]
[1765671268422,0.71,133.08,133.07,22.73084742]
[1765671271449,0.2,133.09,133.08,13.0470912]
[1765671271752,0.2,133.09,133.08,15.90600561]
[1765671271929,0.2,133.09,133.08,17.1239342]
[1765671273440,0.2,133.09,133.08,96.86505432]
[1765671273643,0.2,133.12,133.11,16.4339342]
[1765671273947,0.2,133.12,133.11,3.386843]
[1765671274268,0.2,133.12,133.11,4.076843]
[1765671274636,0.2,133.12,133.11,64.676843]
[1765671275029,0.20074696,133.15,133.14,13.0470912]
[1765671275342,0.20074696,133.15,133.14,28.0607772]
[1765671275512,0.20074696,133.15,133.14,36.26166799]
[1765671275712,0.20074696,133.15,133.14,39.26907372]
[1765671275917,0.20074696,133.15,133.14,29.48798199]
[1765671276119,0.20074696,133.15,133.14,36.26166799]
[1765671278087,0.91074696,133.15,133.14,32.18482499]
[1765671278876,0.20074696,133.15,133.14,32.87482499]
[1765671279349,0.20074696,133.15,133.14,36.26166799]
[1765671280274,0.38756455,133.17,133.16,57.88489524]
[1765671280581,0.38756455,133.17,133.16,61.27173824]
[1765671281883,0.38756455,133.17,133.16,68.78150093]
[1765671283246,1.09756455,133.17,133.16,68.78150093]
[1765671285682,0.38756455,133.17,133.16,68.78150093]
[1765671286379,0.38756455,133.17,133.16,69.47150093]
[1765671287067,0.77438213,133.19,133.18,56.81635735]
[1765671287385,0.77438213,133.19,133.18,60.20320035]
[1765671287686,0.77438213,133.19,133.18,67.71183528]
[1765671288167,0.77438213,133.19,133.18,76.62183528]
[1765671288362,1.48438213,133.19,133.18,75.93183528]
[1765671288673,1.48438213,133.19,133.18,67.71183528]
[1765671289069,0.77438213,133.19,133.18,67.71183528]
[1765671292887,0.77438213,133.19,133.18,68.40183528]
[1765671293055,0.77438213,133.19,133.18,76.62183528]
[1765671293258,0.77438213,133.19,133.18,181.02183528]
[1765671295286,0.77438213,133.19,133.18,180.33183528]
[1765671295886,0.77438213,133.19,133.18,181.04183528]
[1765671296088,0.77438213,133.19,133.18,180.33183528]
[1765671297391,1.47438213,133.19,133.18,180.33183528]
[1765671298100,1.47438213,133.19,133.18,75.93183528]
[1765671298995,1.47438213,133.19,133.18,67.71183528]
[1765671300307,1.47438213,133.19,133.18,60.20320035]
[1765671300609,1.47438213,133.19,133.18,67.71183528]
[1765671301275,1.47438213,133.19,133.18,64.32499228]
[1765671301682,0.77438213,133.19,133.18,68.42183528]
[1765671301900,0.77438213,133.19,133.18,67.71183528]
[1765671302410,0.77438213,133.19,133.18,67.70786632]
[1765671304917,1.47438213,133.19,133.18,67.70786632]
[1765671308523,1.47438213,133.19,133.18,56.81635735]
[1765671310429,10.28432705,133.19,133.18,56.81635735]
[1765671311909,8.80994492,133.18,133.16,56.81635735]
[1765671312190,9.50994492,133.18,133.16,56.81635735]
[1765671312404,0.7,133.17,133.16,56.81635735]
[1765671312891,0.7,133.17,133.16,60.19923139]
[1765671313390,0.7,133.17,133.16,67.70899408]
[1765671315638,0.7,133.17,133.16,64.32612004]
[1765671315844,0.7,133.17,133.16,67.70899408]
[1765671316848,0.7,133.17,133.16,64.32612004]
[1765671317024,9.50994492,133.17,133.16,56.81635735]
[1765671318237,9.50994492,133.17,133.15,16.42996524]
[1765671318238,8.80994492,133.16,133.15,16.42996524]
[1765671318551,9.50994492,133.16,133.15,16.42996524]
[1765671320848,9.50994492,133.16,133.15,13.0470912]
[1765671321028,9.50994492,133.16,133.15,16.42996524]
[1765671325257,9.50994492,133.16,133.15,23.94029193]
[1765671330785,9.50994492,133.16,133.14,64.32722535]
[1765671330994,0.68,133.15,133.14,80.75719059]
[1765671332883,0.68,133.16,133.14,80.75719059]
[1765671333976,0.68,133.16,133.14,79.54098389]
[1765671334176,9.48994492,133.16,133.15,2.16666734]
[1765671337787,9.48994492,133.16,133.15,9.67699403]
[1765671338692,9.48994492,133.16,133.15,9.67689059]
[1765671338858,9.48994492,133.16,133.15,7.51032669]
[1765671345590,9.48994492,133.16,133.15,64.32668404]
[1765671353800,9.48994492,133.16,133.15,66.49324794]
[1765671359822,9.48994492,133.16,133.15,64.32668404]
[1765671360719,8.97221904,133.17,133.15,66.49324794]
[1765671360918,0.77438213,133.19,133.16,2.8465639]
[1765671361128,0.77438213,133.19,133.17,2.1665639]
[1765671361304,0.77438213,133.19,133.17,2.8465639]
[1765671361503,1.45438213,133.19,133.17,2.8465639]
[1765671361807,10.26432705,133.19,133.18,2.1665639]
[1765671363008,0.77438213,133.19,133.18,10.35519883]
[1765671363210,0.77438213,133.19,133.18,67.17155618]
[1765671367625,0.77438213,133.19,133.18,65.00499228]
[1765671367820,1.45438213,133.19,133.18,66.49155618]
[1765671368309,0.77438213,133.19,133.18,66.49155618]
[1765671372732,0.77438213,133.19,133.18,67.17155618]
[1765671373061,8.80994492,133.18,133.16,56.81635735]
[1765671373444,8.80994492,133.18,133.16,58.98292125]
[1765671373445,9.48994492,133.18,133.16,58.98292125]
[1765671374151,9.48994492,133.18,133.16,58.9824419]
[1765671376360,9.48994492,133.18,133.16,59.6624419]
[1765671376848,9.48994492,133.18,133.17,2.16608455]
[1765671378156,9.48994492,133.18,133.17,58.9824419]
[1765671379058,1.52660117,133.19,133.17,58.9824419]
[1765671379348,10.26432705,133.19,133.17,58.9824419]
[1765671379555,0.77438213,133.19,133.18,2.84608455]
[1765671381256,0.77438213,133.19,133.18,10.35471948]
[1765671382162,0.77438213,133.19,133.18,67.17107683]
[1765671387170,0.77438213,133.19,133.18,171.57107683]
[1765671392771,0.66779093,133.2,133.18,69.33716138]
[1765671392978,0.66779093,133.2,133.19,26.2992603]
[1765671393177,0.96119972,133.21,133.2,56.14856642]
[1765671393340,0.96119972,133.21,133.2,61.18073552]
[1765671393840,0.96119972,133.21,133.2,63.61001786]
[1765671394483,0.96119972,133.21,133.2,71.11752536]
[1765671396386,0.96119972,133.21,133.2,74.12334914]
[1765671396688,2.96722605,133.22,133.2,74.12334914]
[1765671396860,2.96722605,133.22,133.21,25.34781692]
[1765671397664,2.96722605,133.22,133.21,68.44929214]
[1765671400292,1.04142609,133.24,133.22,0.98432314]
[1765671400496,1.13483489,133.25,133.23,28.02854264]
[1765671400797,1.13483489,133.25,133.24,6.76145144]
[1765671400955,1.13483489,133.25,133.24,7.46145144]
[1765671401818,1.13483489,133.25,133.24,14.96670511]
[1765671404968,1.42165247,133.27,133.26,53.68548785]
[1765671405169,2.14165247,133.27,133.26,161.46621357]
[1765671406702,2.14165247,133.27,133.26,64.57034083]
[1765671406882,1.42165247,133.27,133.26,64.57034083]
[1765671408480,1.42165247,133.27,133.26,65.27034083]
[1765671408998,1.42165247,133.27,133.26,78.31743203]
[1765671409196,1.42165247,133.27,133.26,68.82913436]
[1765671409500,3.55879353,133.28,133.26,68.82913436]
[1765671409706,3.55879353,133.28,133.27,28.72854264]
[1765671409873,3.55879353,133.28,133.27,25.34781692]
[1765671410071,1.70187885,133.3,133.29,56.12066256]
[1765671410400,1.70187885,133.3,133.29,59.50138828]
[1765671410712,1.70187885,133.3,133.29,63.582114]
[1765671411380,1.70187885,133.3,133.29,63.57337668]
[1765671411576,1.70187885,133.3,133.29,84.84046788]
[1765671411801,1.70187885,133.3,133.29,189.24046788]
[1765671412508,1.70187885,133.3,133.29,192.24448575]
[1765671412876,1.70187885,133.3,133.29,179.19739455]
[1765671414015,1.69528764,133.31,133.29,179.19739455]
[1765671414219,1.69528764,133.31,133.3,20.49980532]
[1765671414718,1.69528764,133.31,133.3,23.5035976]
[1765671414878,1.69528764,133.31,133.3,163.47473067]
[1765671415086,1.88869643,133.32,133.3,163.47473067]
[1765671415396,1.88869643,133.32,133.31,25.29344826]
[1765671416107,1.88869643,133.32,133.31,32.79476098]
[1765671419108,1.88869643,133.32,133.31,19.74766978]
[1765671419313,1.88869643,133.32,133.31,24.84641011]
[1765671419910,3.77122951,133.35,133.34,38.80310018]
[1765671420083,3.77122951,133.35,133.34,42.17945724]
[1765671421419,3.05122951,133.35,133.34,49.67908225]
[1765671421594,3.05122951,133.35,133.34,154.72908225]
[1765671422318,3.05122951,133.35,133.34,154.07908225]
[1765671422687,3.05122951,133.35,133.34,150.70272519]
[1765671422886,3.05122951,133.35,133.34,154.07908225]
[1765671423815,3.76122951,133.35,133.34,42.17945724]
[1765671424483,3.76122951,133.35,133.34,38.80310018]
[1765671424685,3.76122951,133.35,133.34,42.17945724]
[1765671424917,3.76122951,133.35,133.33,38.80310018]
[1765671424918,20.07023704,133.35,133.33,38.80310018]
[1765671425086,9.51994492,133.34,133.32,3.37635706]
[1765671425284,9.51994492,133.34,133.31,38.80310018]
[1765671425285,17.01966131,133.34,133.31,38.80310018]
[1765671425485,17.01966131,133.34,133.29,3.37635706]
[1765671425486,8.80994492,133.32,133.29,3.37635706]
[1765671425993,0.71,133.31,133.29,3.37635706]
[1765671426683,0.71,133.31,133.29,10.87878311]
[1765671427607,0.71,133.31,133.3,3.37635706]
[1765671431313,0.71,133.31,133.29,10.87878311]
[1765671431690,0.71,133.31,133.29,49.68188329]
[1765671433214,0.71,133.31,133.3,3.37635706]
[1765671433723,0.71,133.31,133.29,46.30552623]
[1765671433893,0.71,133.31,133.3,3.37635706]
[1765671435634,8.21136279,133.31,133.3,38.80310018]
[1765671437623,0.71,133.31,133.3,38.80310018]
[1765671441816,9.51994492,133.32,133.3,42.17945724]
[1765671442015,8.97221904,133.34,133.31,3.37635706]
[1765671442317,0.71,133.33,133.32,3.37635706]
[1765671446121,0.71,133.33,133.31,42.17945724]
[1765671446433,8.80994492,133.32,133.31,38.80310018]
[1765671446817,0.75221904,133.33,133.31,42.18043029]
[1765671447019,0.68,133.32,133.31,42.18043029]
[1765671447529,0.68,133.32,133.31,49.68174301]
[1765671447917,8.9,133.34,133.31,49.68174301]
[1765671448116,0.68,133.33,133.32,3.37733011]
[1765671451453,0.68,133.33,133.31,49.68174301]
[1765671451752,0.68,133.33,133.32,3.37733011]
[1765671452448,0.68,133.33,133.32,42.18043029]
[1765671453342,0.68,133.33,133.32,38.80310018]
[1765671453539,0.68,133.33,133.32,42.18043029]
[1765671456059,0.68,133.33,133.32,40.96420886]
[1765671456864,0.68,133.33,133.32,38.80310018]
[1765671458040,17.74235146,133.33,133.32,38.80310018]
[1765671458562,8.80994492,133.32,133.29,40.96420886]
[1765671458738,9.48994492,133.32,133.3,2.16110868]
[1765671459256,16.39976812,133.34,133.31,2.16110868]
[1765671459463,0.68,133.33,133.31,2.16110868]
[1765671461359,0.68,133.33,133.31,9.66238387]
[1765671462260,8.9,133.34,133.32,2.16110868]
[1765671462472,127.665183,133.33,133.32,2.16110868]
[1765671462658,128.41740204,133.33,133.29,49.18420886]
[1765671462857,9.48994492,133.32,133.29,48.46629161]
[1765671463242,0.68,133.31,133.29,48.46629161]
[1765671465342,0.68,133.31,133.3,2.16110868]
[1765671466397,17.02994492,133.32,133.3,2.86110868]
[1765671466606,17.70994492,133.32,133.3,2.16110868]
[1765671466899,0.68,133.31,133.3,2.16110868]
[1765671467291,0.68,133.31,133.3,40.96420886]
[1765671470496,0.68,133.31,133.3,38.80310018]
[1765671470820,0.68,133.31,133.3,40.96420886]
[1765671471174,0.68,133.31,133.3,38.80310018]
[1765671476124,0.68,133.31,133.3,40.96420886]
[1765671477715,0.68,133.31,133.3,38.80310018]
[1765671479813,16.99125764,133.31,133.3,38.80310018]
[1765671483708,8.80994492,133.31,133.3,40.96519593]
[1765671483914,9.47994492,133.31,133.3,40.96519593]
[1765671484133,9.47994492,133.31,133.3,38.80310018]
[1765671487949,9.64221904,133.32,133.3,40.96519593]
[1765671488147,8.89,133.32,133.3,40.96519593]
[1765671488322,9.64221904,133.32,133.3,38.80310018]
[1765671488531,8.97221904,133.32,133.3,40.96519593]
[1765671488751,0.67,133.31,133.3,40.96519593]
[1765671489359,8.22,133.32,133.3,40.96519593]
[1765671489534,8.89,133.32,133.3,40.96519593]
[1765671489739,9.64221904,133.32,133.3,40.96519593]
[1765671490525,8.89,133.32,133.3,40.96519593]
[1765671492653,8.22,133.32,133.31,0.67]
[1765671492953,8.22,133.32,133.31,2.83209575]
[1765671493159,127.655183,133.33,133.31,2.16209575]
[1765671493345,127.655183,133.33,133.31,2.83209575]
[1765671493652,126.985183,133.33,133.32,2.16209575]
[1765671493853,126.985183,133.33,133.32,41.63519593]
[1765671495028,126.985183,133.33,133.32,49.135946]
[1765671508708,126.985183,133.33,133.32,48.465946]
[1765671511701,126.985183,133.33,133.32,49.125946]
[1765671511903,126.985183,133.33,133.32,48.465946]
[1765671513711,126.985183,133.33,133.32,40.96519593]
[1765671515307,127.705183,133.33,133.32,40.96519593]
[1765671516111,127.705183,133.33,133.32,38.80310018]
[1765671517017,152.23531542,133.33,133.32,38.80310018]
[1765671517511,174.77052668,133.33,133.32,38.80310018]
[1765671519924,8.80994492,133.32,133.3,42.1808988]
[1765671520219,9.52994492,133.32,133.3,42.1808988]
[1765671523437,0.72,133.31,133.3,42.1808988]
[1765671524144,17.78294568,133.32,133.3,42.1808988]
[1765671526942,17.06294568,133.32,133.3,42.1808988]
[1765671527122,0.72,133.31,133.3,42.1808988]
[1765671531734,0.72,133.31,133.3,38.80310018]
[1765671532052,17.78294568,133.32,133.3,38.80310018]
[1765671532256,0.72,133.31,133.3,38.80310018]
[1765671535259,17.06294568,133.32,133.3,38.80310018]
[1765671535451,17.73294568,133.32,133.3,38.80310018]
[1765671536143,0.67,133.31,133.3,38.80310018]
[1765671537531,17.06294568,133.32,133.3,38.80310018]
[1765671537732,17.73294568,133.32,133.3,38.80310018]
[1765671539356,0.67,133.31,133.3,38.80310018]
[1765671540055,17.06294568,133.32,133.3,38.80310018]
[1765671540364,157.74039426,133.33,133.31,3.37779862]
[1765671540538,135.875183,133.33,133.31,3.37779862]
[1765671540738,136.62740204,133.33,133.3,47.0249133]
[1765671541008,0.67,133.32,133.3,38.80310018]